bitfinex-derivatives/quotes_ETHF0:USTF0_20260121
["timestamp","ask_amount","ask_price","bid_price","bid_amount"]
[1769003859262,0.17048,2935.9,2935.0,0.00391343]
[1769003859263,0.17048,2935.9,2935.0,2.45691243]
[1769003862460,0.17049,2935.8,2935.0,2.45691243]
[1769003862660,0.17049,2935.8,2935.0,3.72668363]
[1769003862861,0.17049,2935.8,2935.0,6.17968263]
[1769003863769,0.17049,2935.8,2935.1,2.452999]
[1769003864472,0.17049,2935.8,2935.0,6.17968263]
[1769003864767,0.17049,2935.8,2935.1,2.452999]
[1769003865167,0.17049,2935.8,2935.0,6.17968263]
[1769003865370,0.00268591,2936.0,2935.1,2.452999]
[1769003865563,0.17049,2935.7,2935.0,2.45691243]
[1769003867470,0.17049,2935.7,2935.0,0.00391343]
[1769003879387,0.00268591,2936.0,2935.5,3.62642425]
[1769003879587,0.00511169,2936.7,2935.6,3.62642425]
[1769003879588,0.17044,2936.6,2935.6,3.62642425]
[1769003879793,0.17044,2936.6,2935.8,2.44820104]
[1769003879994,0.17044,2936.6,2935.9,2.44820104]
[1769003880494,0.17039,2937.4,2936.1,2.44820104]
[1769003880678,0.1704,2937.3,2936.1,6.07462529]
[1769003880883,0.1704,2937.3,2936.2,2.44820104]
[1769003881290,0.1704,2937.2,2936.2,2.44820104]
[1769003881691,0.17043,2936.8,2936.1,2.44820104]
[1769003881886,0.17043,2936.7,2936.1,2.44820104]
[1769003882185,3.6833401,2937.2,2935.8,3.05068255]
[1769003882186,0.17044,2936.6,2935.8,2.44820104]
[1769003884891,0.17045,2936.5,2935.8,2.44820104]
[1769003885091,0.17045,2936.5,2935.7,2.44820104]
[1769003885689,0.17045,2936.5,2935.7,6.07462529]
[1769003885893,0.17045,2936.5,2935.8,2.44820104]
[1769003886087,0.17045,2936.5,2935.7,2.44820104]
[1769003886594,0.17045,2936.4,2935.7,2.44820104]
[1769003886782,0.17045,2936.4,2935.5,2.44820104]
[1769003888790,3.6833401,2937.0,2935.3,2.44820104]
[1769003888989,0.17049,2935.8,2935.0,3.45211447]
[1769003891089,3.6833401,2936.1,2935.0,0.60880343]
[1769003891290,3.6833401,2935.9,2934.5,4.28494121]
[1769003891597,0.17055,2934.8,2934.0,2.44820104]
[1769003891895,0.17055,2934.7,2933.9,2.44820104]
[1769003892196,0.1737556,2934.7,2933.9,2.45059611]
[1769003892894,0.17057,2934.4,2933.9,2.45059611]
[1769003893095,0.0032056,2934.7,2933.0,3.62642425]
[1769003893096,3.6865457,2934.7,2933.0,3.62642425]
[1769003893596,3.6833401,2934.6,2933.0,3.62642425]
[1769003893986,0.17059,2934.0,2933.0,3.62890065]
[1769003896197,0.17059,2934.0,2933.0,0.0024764]
[1769003897094,0.1706,2933.9,2933.0,0.0024764]
[1769003897593,0.0032056,2934.7,2933.0,0.0024764]
[1769003897594,0.17061,2933.7,2933.0,0.0024764]
[1769003900094,0.17061,2933.6,2933.0,0.0024764]
[1769003900295,0.17061,2933.6,2932.9,0.88518285]
[1769003901203,0.17064,2933.2,2932.2,3.42440863]
[1769003902206,0.17064,2933.2,2932.2,3.42836844]
[1769003903707,0.17064,2933.2,2932.4,0.00511169]
[1769003904605,3.61238682,2934.2,2932.4,3.42952032]
[1769003905206,0.17062,2933.5,2932.4,3.42952032]
[1769003905699,3.61238682,2934.2,2932.4,0.00511169]
[1769003905901,0.17064,2933.2,2932.4,0.00511169]
[1769003906498,0.17065,2933.0,2932.4,0.00511169]
[1769003907815,3.61238682,2934.3,2932.4,3.42952032]
[1769003908103,0.17064,2933.2,2932.4,0.00511169]
[1769003908502,3.61238682,2933.9,2932.4,0.00511169]
[1769003908804,0.17063,2933.3,2932.4,0.00511169]
[1769003909203,0.17064,2933.2,2932.4,0.00511169]
[1769003910605,0.17575169,2933.1,2932.4,0.00511169]
[1769003910801,0.00511169,2933.1,2932.2,9.81e-06]
[1769003911007,0.17068,2932.5,2931.1,3.42440863]
[1769003911408,0.17068,2932.4,2931.3,3.42440863]
[1769003911610,0.17069,2932.3,2931.3,3.42440863]
[1769003912118,0.1707,2932.2,2931.3,3.4283702]
[1769003923319,0.00511169,2933.1,2931.3,3.4283702]
[1769003923719,0.17067,2932.7,2931.4,3.42440863]
[1769003924417,0.17067,2932.6,2931.4,3.42440863]
[1769003925710,0.17068,2932.5,2931.4,3.42440863]
[1769003929325,0.17068,2932.5,2931.4,5.85196109]
[1769003929526,0.00300657,2932.7,2931.5,3.60169072]
[1769003930423,0.00300657,2932.7,2931.5,6.02924318]
[1769003930726,0.00300657,2932.7,2931.6,3.60169072]
[1769003930915,0.17367657,2932.7,2931.6,3.60169072]
[1769003931526,0.00511169,2933.1,2931.6,3.60169072]
[1769003932121,0.00511169,2933.1,2931.8,3.60169072]
[1769003932329,0.17064,2933.2,2931.9,3.60169072]
[1769003932525,0.1733666,2933.2,2931.9,3.60169072]
[1769003935327,0.0027266,2933.2,2932.0,3.60169072]
[1769003936229,0.0027266,2933.2,2931.9,0.17071]
[1769003936230,0.0027266,2933.2,2932.4,3.60169072]
[1769003937226,0.17061,2933.7,2932.4,3.60169072]
[1769003938428,0.17345567,2933.7,2932.4,3.60169072]
[1769003938828,0.00284567,2933.7,2932.4,3.60169072]
[1769003939530,0.00284567,2933.7,2932.4,3.77237072]
[1769003939731,0.17059,2934.1,2932.5,3.52322744]
[1769003940230,0.17059,2934.1,2932.5,3.69390744]
[1769003940731,0.17394804,2934.1,2932.5,3.69390744]
[1769003942134,0.00335804,2934.1,2932.5,3.69390744]
[1769003942335,0.1706,2933.8,2932.5,3.52322744]
[1769003942729,3.28733509,2934.1,2932.5,3.52322744]
[1769003943037,3.28733509,2934.1,2932.3,9.48811169]
[1769003943038,0.17063,2933.3,2932.3,9.48811169]
[1769003943232,0.17063,2933.3,2932.3,0.00511169]
[1769003945229,0.1706,2933.9,2932.3,3.52833913]
[1769003946233,0.1706,2933.8,2932.3,3.52833913]
[1769003946938,0.1706,2933.8,2932.3,5.20398827]
[1769003947132,0.1706,2933.8,2932.4,3.52322744]
[1769003949033,0.1706,2933.8,2932.6,3.52322744]
[1769003950739,3.28733509,2934.1,2932.3,0.00511169]
[1769003951235,0.17065,2933.1,2932.3,0.00511169]
[1769003951933,3.28397705,2933.4,2932.3,0.00511169]
[1769003952642,0.17066,2932.8,2932.3,0.00511169]
[1769003953640,0.17066,2932.8,2931.8,2.42755246]
[1769003954845,3.28397705,2933.0,2932.0,1.69e-06]
[1769003955050,0.17072,2931.7,2931.3,0.00396157]
[1769003955336,0.17072,2931.7,2930.6,3.52322744]
[1769003955337,0.17335964,2931.7,2930.6,3.52322744]
[1769003955542,0.00263964,2931.7,2930.6,3.52322744]
[1769003955739,0.17069,2932.3,2930.8,3.61909977]
[1769003956131,0.17069,2932.3,2931.3,0.00511169]
[1769003956730,0.17071,2932.0,2931.3,0.00915195]
[1769003957735,0.17073,2931.6,2930.4,3.61909977]
[1769003958334,0.00511169,2931.9,2930.4,3.61909977]
[1769003958734,0.00511169,2931.9,2930.4,3.62163712]
[1769003958939,0.17582169,2931.9,2930.4,3.62163712]
[1769003959541,0.17072,2931.8,2930.4,3.62163712]
[1769003959738,0.17074,2931.4,2930.4,0.00253735]
[1769003963144,0.17074,2931.4,2930.4,3.62163712]
[1769003963341,0.17583169,2931.9,2930.4,3.62163712]
[1769003964450,0.17073,2931.6,2930.4,3.62163712]
[1769003964643,3.55314096,2931.9,2930.4,0.00253735]
[1769003965244,3.54802927,2931.6,2930.4,0.00253735]
[1769003965846,0.00511169,2931.9,2930.4,0.00253735]
[1769003966249,0.17073,2931.6,2930.4,0.00253735]
[1769003966851,0.17073,2931.6,2930.4,3.62163712]
[1769003967037,0.17073,2931.6,2930.8,3.61909977]
[1769003967348,0.17073,2931.6,2930.7,0.00511169]
[1769003967851,0.17073,2931.6,2930.7,3.62421146]
[1769003968052,0.17073,2931.6,2930.7,0.00511169]
[1769003971457,0.17073,2931.6,2930.7,3.62421146]
[1769003972550,0.00511169,2931.9,2930.7,3.62421146]
[1769003972852,0.1707,2932.2,2930.9,3.61909977]
[1769003973355,0.1707,2932.2,2931.0,3.61909977]
[1769003973556,0.00247973,2932.3,2931.4,3.61909977]
[1769003973758,0.17066,2932.9,2931.4,3.61909977]
[1769003974746,0.17306414,2932.9,2931.4,3.61909977]
[1769003975249,0.17306414,2932.9,2931.4,3.78983977]
[1769003976350,0.00511169,2932.4,2931.4,3.78983977]
[1769003976551,0.17306414,2932.9,2931.4,3.78983977]
[1769003978152,0.17306414,2932.9,2931.4,6.21739223]
[1769003978359,0.17306414,2932.9,2931.6,3.61909977]
[1769003979160,0.17579169,2932.5,2931.2,6.04665223]
[1769003979450,0.17063,2933.4,2932.2,3.61909977]
[1769003980564,0.17063,2933.4,2932.5,0.00511169]
[1769003980565,0.17346053,2933.4,2932.5,0.00511169]
[1769003980763,0.17066,2932.8,2931.4,3.61909977]
[1769003981266,0.17066,2932.8,2931.5,44.41909977]
[1769003981464,3.54802927,2933.0,2931.5,3.61909977]
[1769003981762,0.17068,2932.4,2931.5,0.00403364]
[1769003981964,0.17068,2932.4,2932.0,0.00511169]
[1769003982165,0.17068,2932.4,2931.5,0.00403364]
[1769003984166,3.54802927,2933.0,2931.5,0.00403364]
[1769003985065,3.54802927,2933.0,2932.0,0.00511169]
[1769003985859,3.50605361,2932.7,2931.5,0.00403364]
[1769003986057,0.17069,2932.2,2931.5,0.00403364]
[1769003986263,0.17071,2932.0,2931.5,0.00403364]
[1769003986462,0.17071,2932.0,2930.7,9.485]
[1769003987265,0.17071,2932.0,2930.6,6.17025557]
[1769003987464,0.17071,2932.0,2930.6,6.17463024]
[1769003989270,0.17071,2932.0,2930.6,3.74707778]
[1769003989466,0.17075,2931.3,2931.0,0.00511169]
[1769003989765,0.17075,2931.3,2930.6,0.00437467]
[1769003989766,0.17077,2931.0,2930.6,0.00437467]
[1769003989960,3.50858077,2931.3,2929.4,3.74270311]
[1769003990168,0.17081,2930.2,2928.9,3.74270311]
[1769003990358,0.17077,2930.9,2929.1,3.74270311]
[1769003990566,3.50858077,2931.3,2929.4,3.74270311]
[1769003990861,3.50858077,2931.3,2929.4,0.00322501]
[1769003990862,0.1708,2930.5,2929.4,0.00322501]
[1769003991464,0.17076,2931.0,2929.4,3.74592812]
[1769003992073,0.17076,2931.0,2929.9,3.74270311]
[1769003992373,0.00252716,2931.3,2929.9,3.74270311]
[1769003992766,0.17075,2931.2,2929.9,3.74270311]
[1769003992961,0.17076,2931.1,2929.9,3.74270311]
[1769003993872,0.17077,2930.9,2929.5,6.17025557]
[1769003994074,0.17077,2930.9,2929.5,3.74270311]
[1769003996687,0.17078,2930.8,2929.5,3.74270311]
[1769003996876,0.00252716,2931.3,2929.4,0.00322501]
[1769003996877,3.50605361,2930.4,2929.4,0.00322501]
[1769003997393,3.50605361,2930.4,2928.4,11.66970311]
[1769003997782,0.17085,2929.6,2928.4,11.66970311]
[1769003998386,0.17085,2929.6,2928.5,3.78146169]
[1769003999782,0.17086,2929.4,2928.5,3.78146169]
[1769003999985,0.17086,2929.4,2928.4,0.00422144]
[1769004000186,3.64985063,2930.0,2928.4,0.00422144]
[1769004000387,0.17089,2928.9,2928.4,0.00422144]
[1769004000583,0.17089,2928.9,2927.6,3.78146169]
[1769004000584,3.64985063,2929.2,2927.6,3.78146169]
[1769004000784,0.1709,2928.7,2927.6,3.78146169]
[1769004001196,3.64985063,2929.7,2927.6,3.78146169]
[1769004001197,0.17086,2929.4,2927.6,3.78146169]
[1769004001387,3.64985063,2929.7,2927.6,3.78146169]
[1769004001587,0.00365198,2929.7,2927.9,3.78146169]
[1769004001787,0.00365198,2929.7,2927.6,0.00337588]
[1769004001788,0.17088,2929.1,2927.6,0.00337588]
[1769004001987,3.64985063,2929.3,2927.6,0.00337588]
[1769004002187,0.17092,2928.4,2927.6,0.00337588]
[1769004002383,0.17094,2928.0,2926.4,3.78146169]
[1769004002588,0.17094,2928.0,2926.5,3.78146169]
[1769004002893,0.17096,2927.6,2926.3,3.78146169]
[1769004003197,0.17092,2928.4,2926.8,3.78146169]
[1769004003391,3.65253554,2928.4,2926.8,0.00434634]
[1769004004490,0.17093,2928.2,2926.8,0.00434634]
[1769004004690,0.17093,2928.2,2926.8,3.78580803]
[1769004006198,3.64985063,2928.9,2926.8,3.78580803]
[1769004006397,0.17082,2930.0,2928.6,1.67564914]
[1769004006595,3.64985063,2930.6,2927.7,3.78146169]
[1769004006596,3.64985063,2929.8,2927.7,3.78146169]
[1769004006897,0.27920333,2930.6,2927.3,3.121]
[1769004006898,3.64985063,2929.4,2927.3,3.121]
[1769004007097,0.17091,2928.5,2926.7,3.78146169]
[1769004007292,0.17530416,2928.5,2926.8,3.78580803]
[1769004007492,0.17530416,2928.5,2926.9,40.8]
[1769004007697,0.17530416,2928.5,2927.0,3.78146169]
[1769004008295,0.00439416,2928.5,2927.0,3.78146169]
[1769004008503,0.17093,2928.2,2927.0,3.78146169]
[1769004009395,0.17098,2927.4,2926.8,0.00434634]
[1769004009598,3.64985063,2928.0,2926.8,0.00434634]
[1769004009794,3.65424479,2928.5,2926.8,3.78580803]
[1769004010005,0.00439416,2928.5,2926.8,3.95681803]
[1769004010200,0.17086,2929.4,2927.1,3.95245169]
[1769004010406,0.17086,2929.4,2927.5,3.78146169]
[1769004010602,3.64985063,2930.0,2927.7,3.78146169]
[1769004010901,0.17082,2930.0,2927.9,3.78146169]
[1769004011099,3.64985063,2929.6,2927.5,4.48403807]
[1769004011302,3.64985063,2929.6,2926.7,13.27546169]
[1769004011303,0.17093,2928.2,2926.7,13.27546169]
[1769004011703,0.17093,2928.2,2926.9,3.78146169]
[1769004012091,0.17088,2929.0,2926.9,3.78146169]
[1769004012299,3.64985063,2929.4,2926.9,3.78146169]
[1769004012505,0.17089,2928.8,2926.9,3.78146169]
[1769004012706,0.17089,2928.8,2927.0,1.68225375]
[1769004013004,0.17089,2928.8,2927.1,3.78146169]
[1769004013598,0.17089,2928.8,2927.0,1.68225375]
[1769004013599,0.17085,2929.5,2927.5,3.78146169]
[1769004014207,0.17085,2929.5,2927.5,3.95243169]
[1769004015095,0.17086,2929.4,2927.5,3.95243169]
[1769004015298,0.00394771,2930.0,2927.5,3.95243169]
[1769004015500,0.17088,2929.0,2927.5,3.78146169]
[1769004016197,3.6363883,2929.6,2927.5,3.78146169]
[1769004016406,3.6363883,2929.6,2926.8,40.97535634]
[1769004016407,3.6363883,2929.6,2926.9,3.73371883]
[1769004016613,3.6363883,2929.2,2926.9,3.73371883]
[1769004016913,3.6363883,2929.0,2926.9,3.73371883]
[1769004017208,3.6363883,2928.8,2926.9,3.73371883]
[1769004017600,0.17094,2928.0,2926.8,0.00434634]
[1769004019307,3.6363883,2928.8,2926.8,0.00434634]
[1769004019308,3.6363883,2928.8,2926.8,3.73806517]
[1769004019505,0.17092,2928.4,2926.8,3.73806517]
[1769004019699,0.17092,2928.3,2926.8,3.73806517]
[1769004022008,3.6363883,2928.8,2926.8,3.73806517]
[1769004022009,0.17094,2928.0,2926.8,3.73806517]
[1769004025214,0.1709,2928.7,2926.8,3.73806517]
[1769004025712,0.1709,2928.7,2927.0,6.16198938]
[1769004025915,0.1709,2928.7,2927.1,13.23071883]
[1769004026213,0.1709,2928.7,2927.2,3.73371883]
[1769004026408,0.1709,2928.7,2927.3,6.16198938]
[1769004026718,0.1709,2928.7,2927.4,3.73371883]
[1769004027522,0.1709,2928.7,2927.4,6.16198938]
[1769004027715,4.83245487,2929.8,2927.5,3.73371883]
[1769004027913,0.17087,2929.3,2927.9,6.16198938]
[1769004028120,0.17087,2929.3,2928.0,3.73371883]
[1769004028419,0.17087,2929.3,2928.1,3.73371883]
[1769004028713,0.00394771,2930.0,2928.1,3.73371883]
[1769004028910,0.17087,2929.3,2928.1,3.73371883]
[1769004030009,0.17087,2929.2,2928.1,3.73371883]
[1769004030210,0.17088,2929.0,2927.9,40.8]
[1769004030613,3.64033601,2930.0,2927.8,2.42827055]
[1769004030814,3.6363883,2929.4,2927.6,3.73371883]
[1769004031123,2.03935199,2929.9,2927.2,3.73371883]
[1769004031124,0.17091,2928.6,2927.2,3.73371883]
[1769004031712,3.6363883,2929.3,2927.2,3.73371883]
[1769004031713,0.17092,2928.4,2927.2,3.73371883]
[1769004032623,3.6363883,2929.3,2927.2,3.73371883]
[1769004032816,3.6363883,2929.1,2927.2,3.73371883]
[1769004033020,3.6363883,2928.9,2927.2,3.73371883]
[1769004033314,0.17092,2928.4,2927.2,3.73371883]
[1769004033510,0.17093,2928.2,2927.2,3.73371883]
[1769004034316,0.17089,2928.8,2927.2,3.73371883]
[1769004034516,0.17089,2928.8,2927.3,3.73371883]
[1769004034910,0.17086,2929.4,2927.8,3.73371883]
[1769004035220,0.17086,2929.4,2927.9,3.73371883]
[1769004035421,0.17086,2929.4,2928.1,3.73371883]
[1769004035814,0.17086,2929.4,2928.3,3.73371883]
[1769004036824,0.17476771,2930.0,2928.3,3.73371883]
[1769004037026,0.17476771,2930.0,2928.3,6.33290938]
[1769004037219,0.17476771,2930.0,2928.5,3.73371883]
[1769004037421,0.00394771,2930.0,2928.7,3.73371883]
[1769004037622,0.17079,2930.6,2928.7,3.90461883]
[1769004037813,3.6363883,2931.5,2928.7,3.90461883]
[1769004037814,0.17075,2931.2,2928.8,3.73371883]
[1769004038020,0.17076,2931.1,2929.0,6.16198938]
[1769004038317,0.17076,2931.0,2929.1,3.73371883]
[1769004038515,0.17077,2930.9,2929.1,3.73757254]
[1769004038719,0.00345676,2931.0,2929.1,3.73757254]
[1769004039525,0.17079,2930.7,2929.1,3.73757254]
[1769004039918,0.17079,2930.7,2929.3,3.73371883]
[1769004040927,0.17079,2930.5,2929.3,3.73371883]
[1769004043326,0.17081,2930.2,2929.1,0.00385371]
[1769004043925,0.17081,2930.2,2929.1,3.73757254]
[1769004045329,0.17078,2930.7,2929.1,3.73757254]
[1769004047831,0.17079,2930.6,2929.1,3.73757254]
[1769004049325,0.17079,2930.6,2929.3,3.66223081]
[1769004049534,0.17079,2930.6,2929.5,3.66223081]
[1769004052626,0.17421676,2931.0,2929.5,3.66223081]
[1769004052832,0.17077,2930.9,2929.5,3.66223081]
[1769004053835,2.87832032,2932.5,2929.4,9.492]
[1769004053836,3.44129285,2932.0,2929.7,3.66223081]
[1769004054030,0.17074,2931.4,2929.9,3.66223081]
[1769004055235,0.17425383,2931.4,2929.9,3.66223081]
[1769004056032,0.0051205,2930.9,2929.9,3.66223081]
[1769004056335,0.17425383,2931.4,2929.9,3.66223081]
[1769004057430,0.0051205,2930.9,2929.9,3.66223081]
[1769004057626,0.00351383,2931.4,2929.9,7.25006081]
[1769004057827,0.17071,2931.9,2930.0,7.07923081]
[1769004058033,0.17071,2931.9,2930.1,3.62697176]
[1769004058638,0.17071,2931.9,2930.3,3.62697176]
[1769004058839,0.17496446,2931.9,2930.3,3.62697176]
[1769004059032,0.17068,2932.5,2930.9,3.62697176]
[1769004059231,3.62770024,2933.0,2930.9,3.62697176]
[1769004059540,3.62770024,2932.4,2930.8,0.0051205]
[1769004059743,0.17074,2931.5,2930.8,0.0051205]
[1769004060142,0.17075,2931.2,2930.8,0.0051205]
[1769004060432,0.0024973,2931.5,2929.9,6.05524231]
[1769004060433,0.17077,2930.9,2929.9,3.62697176]
[1769004060832,3.62770024,2931.1,2929.1,0.00385371]
[1769004061033,0.1708,2930.4,2929.1,0.00385371]
[1769004061536,0.1708,2930.4,2929.1,3.63082547]
[1769004061736,0.0051205,2930.0,2929.1,3.63082547]
[1769004062643,0.17076,2931.0,2929.4,6.05524231]
[1769004062839,0.17076,2931.0,2929.5,3.62697176]
[1769004063241,0.17076,2931.0,2929.5,6.05524231]
[1769004063439,0.0024973,2931.5,2929.6,3.62697176]
[1769004063640,3.62770024,2931.3,2929.2,2.42827055]
[1769004063843,0.17081,2930.3,2929.1,6.05909602]
[1769004064044,0.0051205,2930.0,2929.4,0.0051205]
[1769004064844,0.17077,2930.9,2929.4,3.63209226]
[1769004065036,0.17077,2930.9,2929.5,3.62697176]
[1769004065637,0.17075,2931.3,2929.7,3.62697176]
[1769004065843,0.17075,2931.3,2929.8,3.62697176]
[1769004066144,0.17075,2931.3,2929.9,3.62697176]
[1769004067045,0.0024973,2931.5,2929.9,3.62697176]
[1769004067046,0.17075,2931.2,2929.9,3.62697176]
[1769004067843,0.17075,2931.2,2929.9,6.05524231]
[1769004069154,0.17075,2931.2,2930.0,3.62697176]
[1769004069651,0.17075,2931.2,2930.0,6.05524231]
[1769004070350,0.17076,2931.1,2930.0,6.05524231]
[1769004070543,0.0024973,2931.5,2929.8,40.8]
[1769004070544,0.17077,2930.9,2929.9,2.42827055]
[1769004071145,3.62770024,2931.4,2929.9,2.42827055]
[1769004071347,3.62770024,2931.4,2929.8,2.42827055]
[1769004071551,0.1708,2930.4,2929.5,2.42827055]
[1769004071743,0.17081,2930.3,2929.4,0.0051205]
[1769004073645,0.17082,2930.1,2929.4,0.0051205]
[1769004074152,0.17082,2930.0,2929.4,0.0051205]
[1769004075248,0.1708,2930.5,2929.4,0.0051205]
[1769004075647,0.1708,2930.4,2929.4,0.0051205]
[1769004076050,0.17078,2930.8,2929.4,3.48817358]
[1769004076260,0.17078,2930.7,2929.5,3.48305308]
[1769004076552,3.62770024,2931.3,2929.4,0.0051205]
[1769004076741,0.17082,2930.1,2929.4,0.0051205]
[1769004082062,0.17078,2930.7,2929.4,0.0051205]
[1769004082262,3.61491262,2931.1,2929.5,3.48305308]
[1769004082263,0.17079,2930.6,2929.5,3.48305308]
[1769004082456,0.17079,2930.5,2929.5,3.48305308]
[1769004083961,0.0024973,2931.5,2929.7,5.91132363]
[1769004084157,0.0024973,2931.5,2929.8,5.91132363]
[1769004085261,0.17077,2931.0,2929.8,5.91132363]
[1769004086359,0.17077,2931.0,2929.9,2.42827055]
[1769004086862,0.17077,2931.0,2929.9,5.91132363]
[1769004087362,0.0024973,2931.5,2930.0,3.48305308]
[1769004087659,1.81752908,2932.2,2931.0,3.48305308]
[1769004087660,0.1707,2932.2,2931.0,3.48305308]
[1769004088057,3.61491262,2932.7,2930.8,2.42827055]
[1769004088363,3.61491262,2932.7,2931.3,0.0051205]
[1769004088564,0.17071,2932.0,2931.3,0.00835864]
[1769004089163,3.61491262,2932.1,2930.0,2.42827055]
[1769004089354,0.17074,2931.4,2930.1,5.91132363]
[1769004089562,3.61626426,2932.7,2930.5,3.48305308]
[1769004089760,0.1707,2932.1,2930.6,3.48305308]
[1769004090263,0.1707,2932.1,2930.6,3.4873423]
[1769004090462,0.17071,2932.0,2930.6,3.4873423]
[1769004091264,0.17071,2931.9,2930.6,3.4873423]
[1769004091464,3.61626426,2932.7,2931.0,0.0051205]
[1769004091664,0.17071,2931.9,2931.0,0.0051205]
[1769004093769,0.1758405,2931.7,2931.0,0.0051205]
[1769004093964,0.17074,2931.5,2931.0,0.0051205]
[1769004095563,0.0051205,2931.7,2931.0,0.0051205]
[1769004096662,0.0051205,2931.7,2931.0,5e-07]
[1769004097069,0.17075,2931.3,2931.0,5e-07]
[1769004097373,0.17075,2931.3,2930.6,0.00428922]
[1769004098467,3.62003312,2931.7,2930.6,0.00428922]
[1769004098678,0.17077,2931.0,2930.6,0.00428922]
[1769004098972,0.17077,2931.0,2930.2,2.42827055]
[1769004099770,0.17077,2931.0,2930.0,3.05068255]
[1769004099771,0.1708,2930.5,2929.7,2.42827055]
[1769004099972,0.1708,2930.4,2929.7,0.00438139]
[1769004100175,0.17081,2930.3,2929.7,0.00438139]
[1769004100770,0.17081,2930.2,2929.7,0.00438139]
[1769004100967,0.17081,2930.2,2929.2,3.48305308]
[1769004100968,0.17083,2929.9,2929.2,2.42827055]
[1769004101373,0.0051205,2929.8,2929.1,2.42827055]
[1769004102076,0.0051205,2929.8,2929.1,2.43217327]
[1769004102884,0.17326268,2930.5,2929.1,2.43217327]
[1769004103179,0.17326268,2930.5,2929.2,0.0051205]
[1769004103878,0.1708,2930.4,2929.2,0.0051205]
[1769004104387,0.1708,2930.4,2929.3,5.16206966]
[1769004104578,0.1708,2930.4,2929.3,7.59034021]
[1769004105178,0.0051205,2930.1,2929.3,7.59034021]
[1769004105374,0.0051205,2930.1,2926.0,1.85006658]
[1769004105375,1.67901658,2929.6,2926.0,1.85006658]
[1769004105581,1.67901658,2929.6,2926.5,1.67901658]
[1769004105780,0.17092,2928.4,2927.0,1.67901658]
[1769004106179,0.17092,2928.4,2927.1,9.489]
[1769004106375,0.17412294,2928.4,2927.1,9.49304005]
[1769004106580,0.0051205,2928.0,2927.1,9.49304005]
[1769004107273,0.0051205,2928.0,2927.2,3.47897873]
[1769004107583,0.17092,2928.3,2927.2,3.47897873]
[1769004107774,0.17092,2928.3,2927.4,3.47897873]
[1769004108983,0.17094,2928.1,2927.4,3.47897873]
[1769004109178,0.17094,2928.0,2927.5,9.491]
[1769004111281,0.17094,2928.0,2927.6,9.492]
[1769004111677,0.00320294,2928.4,2927.6,9.492]
[1769004112769,1.67901658,2929.6,2927.7,3.47897873]
[1769004112978,0.0051205,2928.3,2927.7,3.47897873]
[1769004113180,1.09092266,2929.7,2927.7,3.47897873]
[1769004113386,0.17091,2928.5,2927.7,3.47897873]
[1769004113677,0.17093,2928.3,2927.8,9.493]
[1769004113878,0.17496512,2928.3,2927.8,9.493]
[1769004114278,0.17496512,2928.3,2927.8,9.4981205]
[1769004114481,0.17093,2928.2,2927.8,9.4981205]
[1769004116388,0.17093,2928.2,2927.9,9.494]
[1769004120188,1.09707457,2929.6,2927.9,13.14943045]
[1769004120386,1.09707457,2929.6,2928.0,3.65543045]
[1769004120588,1.44295969,2930.1,2928.1,11.71343045]
[1769004120789,0.17091,2928.5,2928.1,11.71343045]
[1769004121085,0.17091,2928.6,2928.2,9.495]
[1769004121286,0.15986822,2928.6,2928.2,9.495]
[1769004121775,1.61386969,2929.6,2928.3,9.495]
[1769004122184,1.61678013,2929.6,2928.3,9.495]
[1769004122386,0.17091,2928.6,2928.3,9.495]
[1769004122582,0.17092,2928.4,2928.3,9.495]
[1769004122784,1.61784894,2929.1,2928.3,7.75572233]
[1769004122990,0.17094,2928.1,2927.8,0.0051205]
[1769004123292,0.17094,2928.1,2927.9,9.495]
[1769004125187,0.00291044,2929.6,2927.9,13.15043045]
[1769004125492,0.17091,2928.5,2928.0,3.65543045]
[1769004125885,0.00291044,2929.6,2928.0,3.65543045]
[1769004126091,0.36022104,2929.1,2928.0,9.12384]
[1769004126295,0.17093,2928.2,2928.0,9.12384]
[1769004129097,1.19606657,2929.5,2928.0,9.12384]
[1769004129298,0.17091,2928.5,2928.0,9.12384]
[1769004129595,1.19606657,2929.4,2928.0,9.12384]
[1769004129784,0.17092,2928.3,2928.0,9.12384]
[1769004129989,1.19606657,2929.4,2928.0,9.12384]
[1769004130184,0.17091,2928.5,2928.0,9.12384]
[1769004130486,1.19606657,2929.4,2928.0,12.77927045]
[1769004130689,1.19606657,2929.4,2928.0,9.12384]
[1769004131093,0.17092,2928.4,2928.0,9.12384]
[1769004133095,0.17092,2928.3,2928.0,9.12384]
[1769004133486,1.19606657,2929.2,2928.0,9.12384]
[1769004134091,1.19606657,2929.2,2927.8,0.0051205]
[1769004134291,1.19606657,2928.7,2927.8,5e-07]
[1769004134489,1.00716317,2928.6,2927.8,5e-07]
[1769004134694,1.00716317,2928.5,2927.8,5e-07]
[1769004134897,1.00716317,2928.4,2927.8,5e-07]
[1769004135205,1.00716317,2928.3,2927.8,5e-07]
[1769004135399,1.00716317,2928.2,2927.1,0.00404005]
[1769004135601,0.17097,2927.5,2927.1,3.613498]
[1769004135803,0.17525396,2927.5,2927.1,3.613498]
[1769004135993,1.19606657,2928.2,2927.1,5e-08]
[1769004136197,0.17099,2927.2,2926.6,3.60945795]
[1769004136398,0.17099,2927.1,2926.6,3.60945795]
[1769004136700,0.17102,2926.6,2925.2,4.24889589]
[1769004136894,3.0731043,2927.7,2924.5,1.68167147]
[1769004136895,0.17105,2926.1,2924.9,0.89450367]
[1769004137101,0.17406274,2926.1,2924.9,0.89705073]
[1769004137300,1.19606657,2927.0,2925.6,0.0051205]
[1769004137494,0.17104,2926.3,2925.6,0.0051205]
[1769004138308,0.17104,2926.2,2925.6,0.0051205]
[1769004138804,0.00263131,2926.3,2925.0,3.60945795]
[1769004139001,0.17108,2925.7,2925.0,3.60945795]
[1769004139502,0.00263131,2926.3,2925.0,3.60945795]
[1769004139503,0.17367131,2926.3,2925.0,3.60945795]
[1769004140097,0.17104,2926.2,2925.0,3.60945795]
[1769004140298,0.17104,2926.2,2925.2,3.60945795]
[1769004140500,0.17101,2926.8,2925.5,3.60945795]
[1769004140700,0.17102,2926.7,2925.5,3.60945795]
[1769004141607,0.00130699,2926.7,2925.5,3.60945795]
[1769004141794,0.17104,2926.2,2925.4,0.0051205]
[1769004143812,0.17104,2926.2,2925.4,3.61457845]
[1769004146111,0.00130699,2926.7,2925.4,3.61457845]
[1769004147004,0.17105,2926.2,2925.4,3.61457845]
[1769004147404,0.00130699,2926.7,2925.4,3.61457845]
[1769004147605,0.17105,2926.1,2925.4,3.61457845]